Workbook

Sheet 01.09
A2: МБОУ "СОШ №33" НМР РТ | D2: Отд./корп | E2: 2 неделя | H2: День | I2: 2022-09-01
A4: Раздел | B4: № рец. | C4: Блюдо | D4: Выход, г | E4: Цена | F4: Ккал | G4: Белки | H4: Жиры | I4: Угл-ды
A5: Завтрак
A7: 2 блюдо
A8: гор.напиток
A9: хлеб
D11: 0 | F11: =SUM(F6:F10) -> 0.00 | G11: =SUM(G6:G10) -> 0.00 | H11: 0.00 | I11: 0.00
A12: Обед
A13: хлеб
A14: 1 блюдо
A15: 2 блюдо
A16: гарнир
A17: напиток
A18: хлеб
D20: 0 | F20: =SUM(F13:F19) -> 0.00 | G20: =SUM(G13:G19) -> 0.00 | H20: 0.00 | I20: 0.00
C21: бесп питание младшие + допол. питание | D21: =D11+D20 -> 0 | E21: 0.00 | F21: =SUM(F11+F20) -> 0.00 | G21: =SUM(G11+G20) -> 0.00 | H21: 0.00 | I21: 0.00
A23: Горячий завтрак (младшие)
A24: хлеб
A25: 2 блюдо
A26: гарнир
A27: гор.напиток
A28: хлеб
C30: бесплатное питание младшие | D30: 0 | E30: 0.00 | F30: =SUM(F24:F28) -> 0.00 | G30: =SUM(G24:G28) -> 0.00 | H30: 0.00 | I30: 0.00
A32: Раздел | B32: № рец. | C32: Блюдо | D32: Выход, г | E32: Цена | F32: Ккал | G32: Белки | H32: Жиры | I32: Угл-ды
A33: Старшие
A34: хлеб
A35: 1 блюдо
A36: 2 блюдо
A37: гарнир
A38: гор.напиток
A39: хлеб
C41: питание старшие | D41: 0 | E41: 0.00 | F41: =SUM(F34:F39) -> 0.00 | G41: =SUM(G34:G39) -> 0.00 | H41: 0.00 | I41: 0.00

Sheet 02.09
A2: МБОУ "СОШ №33" НМР РТ | D2: Отд./корп | E2: 2 неделя | H2: День | I2: 2022-09-02
A4: Раздел | B4: № рец. | C4: Блюдо | D4: Выход, г | E4: Цена | F4: Ккал | G4: Белки | H4: Жиры | I4: Угл-ды
A5: Завтрак
A6: фрукт
A7: 2 блюдо
A8: гор.напиток
A9: хлеб
D11: 0 | F11: =F6+F7+F8+F9+F10 -> 0.00 | G11: =G6+G7+G8+G9+G10 -> 0.00 | H11: =H6+H7+H8+H9+H10 -> 0.00 | I11: =I6+I7+I8+I9+I10 -> 0.00
A12: Обед
A14: 1 блюдо
A15: 2 блюдо
A16: гарнир
A17: напиток
A18: хлеб
D19: 0
C21: бесп питание младшие + допол. питание | D21: =D11+D19 -> 0 | E21: 0.00 | F21: =F13+F14+F15+F16+F17+F18 -> 0.00 | G21: =G13+G14+G15+G16+G17+G18 -> 0.00 | H21: 0.00 | I21: 0.00
F22: =F11+F21 -> 0.00 | G22: =G11+G21 -> 0.00 | H22: =H11+H21 -> 0.00 | I22: =I11+I21 -> 0.00
A23: Горячий завтрак (младшие)
B24: 1 | C24: Бутерброд с маслом сливочным 30/10 | D24: 40 | F24: 144.6 | G24: 2.33 | H24: 8.12 | I24: 15.55
A25: 2 блюдо | C25: Котлеты "Аппетитные" мясо-куриные | D25: 90 | F25: 196.88 | G25: 15.65 | H25: 3.95 | I25: 24.750
A26: гарнир | B26: 312 | C26: Картофельное пюре с маслом сливочным | D26: 150/3 | F26: 151.76 | G26: 3.22 | H26: 6.34 | I26: 18.820
A27: напиток | B27: 382 | C27: Какао с молоком | D27: 200 | F27: 78.70 | G27: 1.08 | H27: 3.54 | I27: 7.60
A28: хлеб | C28: Хлеб ржаной | D28: 20 | F28: 39.6 | G28: 1.32 | H28: 0.24 | I28: 7.92
C30: бесплатное питание младшие | D30: 503 | E30: 68.45 | F30: =F24+F25+F26+F27+F28+F29 -> 611.54 | G30: =G24+G25+G26+G27+G28+G29 -> 23.60 | H30: =H24+H25+H26+H27+H28+H29 -> 22.19 | I30: =I24+I25+I26+I27+I28+I29 -> 74.64
A32: Раздел | B32: № рец. | C32: Блюдо | D32: Выход, г | E32: Цена | F32: Ккал | G32: Белки | H32: Жиры | I32: Угл-ды
A33: Старшие
A34: фрукты | C34: Фрукты (яблоки) | D34: 100 | F34: 47 | G34: 0.4 | H34: 0.4 | I34: 9.8
A35: 1 блюдо
A36: 2 блюдо | C36: Котлеты "Аппетитные" мясо-куриные | D36: 100 | F36: 143.75 | G36: 9.75 | H36: 12.18 | I36: 6.400
A37: гарнир | B37: 312 | C37: Картофельное пюре с маслом сливочным | D37: 180/3 | F37: 178.16 | G37: 3.86 | H37: 7.17 | I37: 22.570
A38: напиток | B38: 349 | C38: Напиток из сухофруктов | D38: 200 | F38: 132.80 | G38: 0.70 | H38: 0.10 | I38: 32.00
A39: хлеб | C39: Хлеб ржаной | D39: 20 | F39: 39.60 | G39: 1.32 | H39: 0.24 | I39: 7.92
C41: питание старшие | D41: 603 | E41: 78.00 | F41: =F34+F35+F36+F37+F38+F39 -> 541.31 | G41: =G34+G35+G36+G37+G38+G39 -> 16.03 | H41: 20.09 | I41: 78.69

Sheet 03.09
A2: МБОУ "СОШ №33" НМР РТ | D2: Отд./корп | E2: 2 неделя | H2: День | I2: 2022-09-03
A4: Раздел | B4: № рец. | C4: Блюдо | D4: Выход, г | E4: Цена | F4: Ккал | G4: Белки | H4: Жиры | I4: Угл-ды
A5: Старшие
B6: 15 | C6: Сыр порциями | D6: 10 | F6: 34.33 | G6: 2.63 | H6: 2.66 | I6: 0.00
A7: 2 блюдо | B7: 293 | C7: Курица запеченная | D7: 100 | F7: 250.00 | G7: 14.18 | H7: 17.09 | I7: 0.00
A8: гарнир | C8: Гороховое пюре | D8: 180/3 | F8: 296.28 | G8: 5.84 | H8: 7.96 | I8: 40.70
A9: напиток | C9: Чай с сахаром | D9: 200 | F9: 40.00 | G9: 0.07 | H9: 0.02 | I9: 10.00
A10: хлеб | C10: Хлеб пшеничный/ржаной | D10: 30/30 | F10: 130.28 | G10: 4.25 | H10: 0.60 | I10: 26.68
C12: питание старшие | D12: 553 | E12: 78.00 | F12: =F6+F7+F8+F9+F10 -> 750.89 | G12: =G6+G7+G8+G9+G10 -> 26.97 | H12: =H6+H7+H8+H9+H10 -> 28.33 | I12: =I6+I7+I8+I9+I10 -> 77.38
